[Event "*** Titled Tuesday Blitz"]
[Site "Chess.com"]
[Date "2021.04.06"]
[Round "6"]
[White "GregShahade"]
[Black "Sychev_Klementy"]
[Result "1-0"]
[WhiteElo "2728"]
[BlackElo "2881"]
[TimeControl "180+1"]
[EndTime "11:07:46 PDT"]
[Termination "GregShahade won by resignation"]

1. e4 {[%clk 0:03:00.9]} 1... e5 {[%clk 0:02:58.5]} 2. Nf3 {[%clk 0:03:01]} 2...
Nc6 {[%clk 0:02:59.1]} 3. Bb5 {[%clk 0:03:01.2]} 3... a6 {[%clk 0:02:59.5]} 4.
Ba4 {[%clk 0:03:01.7]} 4... b5 {[%clk 0:02:59.9]} 5. Bb3 {[%clk 0:03:01.3]} 5...
Na5 {[%clk 0:03:00.6]} 6. O-O {[%clk 0:02:59.1]} 6... d6 {[%clk 0:02:58.3]} 7.
d4 {[%clk 0:02:57.6]} 7... exd4 {[%clk 0:02:58]} 8. c3 {[%clk 0:02:46.1]} 8...
Nxb3 {[%clk 0:02:45.9]} 9. axb3 {[%clk 0:02:42.1]} 9... Nf6 {[%clk 0:02:32.7]}
10. Qxd4 {[%clk 0:02:31.6]} 10... Be7 {[%clk 0:02:21.6]} 11. Re1 {[%clk
0:02:24.2]} 11... O-O {[%clk 0:02:17]} 12. Bg5 {[%clk 0:02:21.3]} 12... Bb7
{[%clk 0:02:11.9]} 13. Nbd2 {[%clk 0:02:20.9]} 13... Re8 {[%clk 0:02:10.7]} 14.
b4 {[%clk 0:02:17.4]} 14... Qc8 {[%clk 0:01:28.4]} 15. h3 {[%clk 0:02:03.1]}
15... c5 {[%clk 0:01:22.4]} 16. Qd3 {[%clk 0:02:03.4]} 16... cxb4 {[%clk
0:01:18.3]} 17. cxb4 {[%clk 0:02:03.7]} 17... h6 {[%clk 0:01:16.3]} 18. Bf4
{[%clk 0:01:56.4]} 18... d5 {[%clk 0:01:10.8]} 19. Rac1 {[%clk 0:01:44.3]} 19...
Qd8 {[%clk 0:00:48.2]} 20. Bc7 {[%clk 0:01:18.8]} 20... Qd7 {[%clk 0:00:46]} 21.
e5 {[%clk 0:01:17.6]} 21... Bxb4 {[%clk 0:00:14.2]} 22. exf6 {[%clk 0:01:14.2]}
22... Rxe1+ {[%clk 0:00:14.4]} 23. Nxe1 {[%clk 0:01:14.5]} 23... Rc8 {[%clk
0:00:14.1]} 24. Qg3 {[%clk 0:01:10.7]} 24... g6 {[%clk 0:00:14.1]} 25. Qf4
{[%clk 0:00:56]} 25... a5 {[%clk 0:00:05.2]} 26. Qxh6 {[%clk 0:00:45.1]} 26...
Bf8 {[%clk 0:00:04.8]} 27. Qf4 {[%clk 0:00:45.4]} 27... Bd6 {[%clk 0:00:02.9]}
28. Bxd6 {[%clk 0:00:23.4]} 28... Rxc1 {[%clk 0:00:02.9]} 29. Qh6 {[%clk
0:00:23.7]} 29... Rxe1+ {[%clk 0:00:03.3]} 30. Nf1 {[%clk 0:00:24.2]} 1-0

[Event "*** Titled Tuesday Blitz"]
[Site "Chess.com"]
[Date "2021.04.06"]
[Round "6"]
[White "Deepweb2020"]
[Black "KetiGrant"]
[Result "0-1"]
[WhiteElo "2515"]
[BlackElo "2364"]
[TimeControl "180+1"]
[EndTime "11:07:46 PDT"]
[Termination "KetiGrant won on time"]

1. d4 {[%clk 0:03:00.9]} 1... Nf6 {[%clk 0:02:58.9]} 2. c4 {[%clk 0:03:00.3]}
2... g6 {[%clk 0:02:59.2]} 3. Nf3 {[%clk 0:02:58.8]} 3... Bg7 {[%clk 0:03:00.1]}
4. g3 {[%clk 0:02:58.9]} 4... d6 {[%clk 0:03:00.7]} 5. Bg2 {[%clk 0:02:59.3]}
5... O-O {[%clk 0:03:01.6]} 6. O-O {[%clk 0:02:59.7]} 6... Nc6 {[%clk
0:03:00.9]} 7. Nc3 {[%clk 0:02:59.6]} 7... a6 {[%clk 0:03:01]} 8. b3 {[%clk
0:02:59.4]} 8... Rb8 {[%clk 0:03:00.4]} 9. Nd5 {[%clk 0:02:59.6]} 9... e6 {[%clk
0:02:59]} 10. Nxf6+ {[%clk 0:02:59.4]} 10... Bxf6 {[%clk 0:02:59.9]} 11. Bh6
{[%clk 0:02:59.3]} 11... Re8 {[%clk 0:02:56.9]} 12. e4 {[%clk 0:02:59.4]} 12...
e5 {[%clk 0:02:53.1]} 13. d5 {[%clk 0:02:54.4]} 13... Nd4 {[%clk 0:02:49.8]} 14.
Be3 {[%clk 0:02:19.7]} 14... Bg4 {[%clk 0:02:42.8]} 15. Bxd4 {[%clk 0:02:06.4]}
15... exd4 {[%clk 0:02:43.7]} 16. Qd3 {[%clk 0:02:06.4]} 16... c5 {[%clk
0:02:36.4]} 17. dxc6 {[%clk 0:02:03.6]} 17... bxc6 {[%clk 0:02:37.3]} 18. Nxd4
{[%clk 0:02:02.2]} 18... Qb6 {[%clk 0:02:37]} 19. h3 {[%clk 0:01:41]} 19... Qxd4
{[%clk 0:02:23.4]} 20. Qxd4 {[%clk 0:01:37.5]} 20... Bxd4 {[%clk 0:02:24.3]} 21.
hxg4 {[%clk 0:01:37.6]} 21... Bxa1 {[%clk 0:02:23.8]} 22. Rxa1 {[%clk
0:01:38.5]} 22... c5 {[%clk 0:02:05.3]} 23. Rd1 {[%clk 0:01:34]} 23... Rb6
{[%clk 0:02:04.9]} 24. f4 {[%clk 0:01:15.3]} 24... Kg7 {[%clk 0:02:03]} 25. Rd5
{[%clk 0:01:14.9]} 25... f6 {[%clk 0:02:00.9]} 26. Kf2 {[%clk 0:01:10.6]} 26...
a5 {[%clk 0:02:00.2]} 27. Ke3 {[%clk 0:00:55.1]} 27... Kf7 {[%clk 0:01:53.8]}
28. g5 {[%clk 0:00:51.8]} 28... a4 {[%clk 0:01:43.9]} 29. bxa4 {[%clk
0:00:44.5]} 29... Ra8 {[%clk 0:01:43]} 30. gxf6 {[%clk 0:00:35]} 30... Rxa4
{[%clk 0:01:42.4]} 31. e5 {[%clk 0:00:35.5]} 31... Rxc4 {[%clk 0:01:25.3]} 32.
exd6 {[%clk 0:00:27.2]} 32... Rd4 {[%clk 0:01:22.8]} 33. d7 {[%clk 0:00:18.4]}
33... Rd6 {[%clk 0:01:13.2]} 34. Rxc5 {[%clk 0:00:02.3]} 34... Rxd7 {[%clk
0:01:12.7]} 35. Be4 {[%clk 0:00:02.5]} 35... Kxf6 {[%clk 0:01:07.4]} 36. g4
{[%clk 0:00:01.9]} 36... Ra4 {[%clk 0:01:00.7]} 37. Rc6+ {[%clk 0:00:02.3]}
37... Kg7 {[%clk 0:00:58.9]} 38. Rc2 {[%clk 0:00:02.8]} 38... Re7 {[%clk
0:00:58]} 39. Kf3 {[%clk 0:00:02.9]} 39... Raxe4 {[%clk 0:00:56.3]} 0-1

[Event "*** Titled Tuesday Blitz"]
[Site "Chess.com"]
[Date "2021.04.06"]
[Round "6"]
[White "aljado"]
[Black "Haykoooo0o"]
[Result "1-0"]
[WhiteElo "2114"]
[BlackElo "2437"]
[TimeControl "180+1"]
[EndTime "11:07:46 PDT"]
[Termination "aljado won by checkmate"]

1. e4 {[%clk 0:03:00.9]} 1... c5 {[%clk 0:02:59.6]} 2. Nf3 {[%clk 0:03:00]} 2...
e6 {[%clk 0:03:00.1]} 3. d4 {[%clk 0:02:58.6]} 3... cxd4 {[%clk 0:03:01]} 4.
Nxd4 {[%clk 0:02:58.6]} 4... a6 {[%clk 0:03:01.4]} 5. c4 {[%clk 0:02:57.5]} 5...
Qc7 {[%clk 0:03:00.9]} 6. Nc3 {[%clk 0:02:57]} 6... b6 {[%clk 0:02:58.7]} 7. Be3
{[%clk 0:02:55.8]} 7... Bb7 {[%clk 0:02:56.8]} 8. Be2 {[%clk 0:02:54.5]} 8... f6
{[%clk 0:02:55.3]} 9. O-O {[%clk 0:02:51.3]} 9... Bd6 {[%clk 0:02:42.4]} 10. h3
{[%clk 0:02:40.6]} 10... Bf4 {[%clk 0:02:38.1]} 11. Ncb5 {[%clk 0:02:14.3]}
11... axb5 {[%clk 0:02:19.9]} 12. Nxb5 {[%clk 0:02:13.2]} 12... Bh2+ {[%clk
0:01:50.4]} 13. Kh1 {[%clk 0:02:09.5]} 13... Qe5 {[%clk 0:01:45.9]} 14. f4
{[%clk 0:01:42.8]} 14... Qxb2 {[%clk 0:00:58.9]} 15. Nd6+ {[%clk 0:01:41.3]}
15... Kf8 {[%clk 0:00:57]} 16. Nxb7 {[%clk 0:01:40.7]} 16... Bg3 {[%clk
0:00:54.1]} 17. c5 {[%clk 0:01:22.1]} 17... bxc5 {[%clk 0:00:45.8]} 18. Nxc5
{[%clk 0:01:16.5]} 18... Ne7 {[%clk 0:00:43.8]} 19. Bf3 {[%clk 0:01:05.5]} 19...
Kf7 {[%clk 0:00:25.9]} 20. e5 {[%clk 0:00:46.9]} 20... Rxa2 {[%clk 0:00:19.1]}
21. Rxa2 {[%clk 0:00:42.2]} 21... Qxa2 {[%clk 0:00:20]} 22. exf6 {[%clk
0:00:40.1]} 22... gxf6 {[%clk 0:00:17.5]} 23. Nxd7 {[%clk 0:00:35.3]} 23... Nxd7
{[%clk 0:00:17.8]} 24. Qxd7 {[%clk 0:00:32.9]} 24... Qb3 {[%clk 0:00:13.8]} 25.
Bh5+ {[%clk 0:00:30.6]} 25... Kg7 {[%clk 0:00:06.5]} 26. Qxe7+ {[%clk
0:00:28.6]} 26... Kh6 {[%clk 0:00:07]} 27. Qxf6+ {[%clk 0:00:20.6]} 27... Kxh5
{[%clk 0:00:07.1]} 28. Qg5# {[%clk 0:00:19.3]} 1-0

[Event "*** Titled Tuesday Blitz"]
[Site "Chess.com"]
[Date "2021.04.06"]
[Round "6"]
[White "BilodeauA"]
[Black "BogdanDeac"]
[Result "0-1"]
[WhiteElo "2903"]
[BlackElo "3067"]
[TimeControl "180+1"]
[EndTime "11:07:48 PDT"]
[Termination "BogdanDeac won by resignation"]

1. d4 {[%clk 0:03:00.1]} 1... Nf6 {[%clk 0:02:59.5]} 2. Nc3 {[%clk 0:03:00.2]}
2... d5 {[%clk 0:02:59.4]} 3. Bf4 {[%clk 0:02:59.7]} 3... a6 {[%clk 0:02:57.9]}
4. e3 {[%clk 0:03:00]} 4... e6 {[%clk 0:02:57.7]} 5. g4 {[%clk 0:02:58.7]} 5...
Bb4 {[%clk 0:02:57.3]} 6. Ne2 {[%clk 0:02:58.5]} 6... O-O {[%clk 0:02:56.6]} 7.
a3 {[%clk 0:02:58.4]} 7... Be7 {[%clk 0:02:43.2]} 8. Ng3 {[%clk 0:02:46.3]} 8...
c5 {[%clk 0:02:41.9]} 9. g5 {[%clk 0:02:30.1]} 9... Nfd7 {[%clk 0:02:40.8]} 10.
h4 {[%clk 0:02:26]} 10... Nc6 {[%clk 0:02:38.5]} 11. Bd3 {[%clk 0:01:58.4]}
11... cxd4 {[%clk 0:02:22]} 12. exd4 {[%clk 0:01:57.2]} 12... f5 {[%clk
0:01:59.7]} 13. Nce2 {[%clk 0:01:17.1]} 13... e5 {[%clk 0:01:27.6]} 14. dxe5
{[%clk 0:01:17.5]} 14... Ndxe5 {[%clk 0:01:28.1]} 15. Kf1 {[%clk 0:01:08.6]}
15... d4 {[%clk 0:00:48.2]} 16. Bxe5 {[%clk 0:00:54.3]} 16... Nxe5 {[%clk
0:00:47]} 17. Nf4 {[%clk 0:00:55]} 17... Qd6 {[%clk 0:00:40.6]} 18. Qe2 {[%clk
0:00:50.7]} 18... Nxd3 {[%clk 0:00:31.3]} 19. Nxd3 {[%clk 0:00:51]} 19... Bd7
{[%clk 0:00:31.1]} 20. Ne5 {[%clk 0:00:34]} 20... Bb5 {[%clk 0:00:28.9]} 21. Nd3
{[%clk 0:00:30.8]} 21... Rae8 {[%clk 0:00:28.8]} 22. Qd2 {[%clk 0:00:24.3]}
22... Bc6 {[%clk 0:00:25.8]} 23. Rh3 {[%clk 0:00:18.2]} 23... f4 {[%clk
0:00:24.5]} 24. Ne2 {[%clk 0:00:15.3]} 24... f3 {[%clk 0:00:24.7]} 25. Ng3
{[%clk 0:00:14.5]} 25... Bd8 {[%clk 0:00:20.8]} 26. Re1 {[%clk 0:00:14]} 26...
Qd7 {[%clk 0:00:20.7]} 27. Rh1 {[%clk 0:00:13]} 27... Bc7 {[%clk 0:00:21]} 28.
Rg1 {[%clk 0:00:09.5]} 28... Qh3+ {[%clk 0:00:20.5]} 0-1

[Event "*** Titled Tuesday Blitz"]
[Site "Chess.com"]
[Date "2021.04.06"]
[Round "6"]
[White "Leo_C"]
[Black "chessmadara"]
[Result "1-0"]
[WhiteElo "2395"]
[BlackElo "2195"]
[TimeControl "180+1"]
[EndTime "11:07:50 PDT"]
[Termination "Leo_C won by resignation"]

1. d4 {[%clk 0:03:00.9]} 1... Nf6 {[%clk 0:02:59]} 2. c4 {[%clk 0:03:00.5]} 2...
g6 {[%clk 0:02:59.1]} 3. f3 {[%clk 0:03:00.3]} 3... d5 {[%clk 0:02:52.8]} 4.
cxd5 {[%clk 0:02:59.9]} 4... Nxd5 {[%clk 0:02:52.6]} 5. e4 {[%clk 0:03:00.3]}
5... Nb6 {[%clk 0:02:52.3]} 6. Nc3 {[%clk 0:03:00.2]} 6... Bg7 {[%clk
0:02:51.9]} 7. Be3 {[%clk 0:03:00.3]} 7... O-O {[%clk 0:02:50.4]} 8. Qd2 {[%clk
0:02:58.8]} 8... e5 {[%clk 0:02:47.1]} 9. d5 {[%clk 0:02:58]} 9... c6 {[%clk
0:02:46.8]} 10. Rd1 {[%clk 0:02:57.8]} 10... cxd5 {[%clk 0:02:43.5]} 11. exd5
{[%clk 0:02:58.7]} 11... N8d7 {[%clk 0:02:40.1]} 12. h4 {[%clk 0:02:58.3]} 12...
h5 {[%clk 0:02:25.4]} 13. g4 {[%clk 0:02:57.3]} 13... Nf6 {[%clk 0:02:25.3]} 14.
g5 {[%clk 0:02:43.5]} 14... Nfd7 {[%clk 0:02:21.3]} 15. Nh3 {[%clk 0:02:40.8]}
15... e4 {[%clk 0:01:40.2]} 16. f4 {[%clk 0:02:19.4]} 16... a6 {[%clk 0:01:17]}
17. a4 {[%clk 0:02:14.7]} 17... Qc7 {[%clk 0:01:15.1]} 18. Nxe4 {[%clk
0:01:41.8]} 18... Nc4 {[%clk 0:01:08.4]} 19. Bxc4 {[%clk 0:01:39.9]} 19... Qxc4
{[%clk 0:01:07.7]} 20. Qd3 {[%clk 0:01:35.5]} 20... Qxa4 {[%clk 0:01:05.2]} 21.
Nhf2 {[%clk 0:01:34.8]} 21... Re8 {[%clk 0:01:03.2]} 22. O-O {[%clk 0:01:30.4]}
22... Bxb2 {[%clk 0:00:52.8]} 23. Nd6 {[%clk 0:01:24.8]} 23... Re7 {[%clk
0:00:44.1]} 24. Rb1 {[%clk 0:01:20.2]} 24... Bg7 {[%clk 0:00:38.5]} 25. Nfe4
{[%clk 0:01:09.8]} 25... b5 {[%clk 0:00:35.3]} 26. Rb3 {[%clk 0:00:59.2]} 26...
Nf8 {[%clk 0:00:28.4]} 27. Ra3 {[%clk 0:00:52.1]} 27... Qb4 {[%clk 0:00:24.5]}
28. Rb1 {[%clk 0:00:49.5]} 28... Bb2 {[%clk 0:00:17.3]} 29. Rb3 {[%clk
0:00:45.7]} 29... Qa4 {[%clk 0:00:16.5]} 30. R1xb2 {[%clk 0:00:41.9]} 30... Bf5
{[%clk 0:00:15.5]} 31. Nxf5 {[%clk 0:00:38]} 31... gxf5 {[%clk 0:00:16.4]} 32.
Nf6+ {[%clk 0:00:37.8]} 32... Kg7 {[%clk 0:00:15.6]} 33. Ra3 {[%clk 0:00:36.3]}
33... Qc4 {[%clk 0:00:14.2]} 34. Qxc4 {[%clk 0:00:31.6]} 34... bxc4 {[%clk
0:00:15.1]} 35. d6 {[%clk 0:00:30.4]} 1-0

[Event "*** Titled Tuesday Blitz"]
[Site "Chess.com"]
[Date "2021.04.06"]
[Round "6"]
[White "PowerThinking2650"]
[Black "Mazanchenko_Dmitry"]
[Result "0-1"]
[WhiteElo "2389"]
[BlackElo "2232"]
[TimeControl "180+1"]
[EndTime "11:07:52 PDT"]
[Termination "Mazanchenko_Dmitry won by resignation"]

1. e4 {[%clk 0:03:00.9]} 1... c5 {[%clk 0:02:58.8]} 2. Nf3 {[%clk 0:03:00]} 2...
d6 {[%clk 0:02:53.8]} 3. d4 {[%clk 0:03:00.3]} 3... Nf6 {[%clk 0:02:51.8]} 4.
Nc3 {[%clk 0:02:57.5]} 4... cxd4 {[%clk 0:02:51.6]} 5. Nxd4 {[%clk 0:02:58.4]}
5... Nc6 {[%clk 0:02:52]} 6. Bc4 {[%clk 0:02:57.7]} 6... e6 {[%clk 0:02:51.6]}
7. Be3 {[%clk 0:02:56.1]} 7... Qc7 {[%clk 0:02:48.9]} 8. Qe2 {[%clk 0:02:55.7]}
8... a6 {[%clk 0:02:48.5]} 9. O-O-O {[%clk 0:02:55.5]} 9... Bd7 {[%clk
0:02:45.6]} 10. Bb3 {[%clk 0:02:26.7]} 10... Be7 {[%clk 0:02:44.3]} 11. g4
{[%clk 0:02:23.3]} 11... Nxd4 {[%clk 0:02:29]} 12. Rxd4 {[%clk 0:02:21.7]} 12...
e5 {[%clk 0:02:29.1]} 13. Rc4 {[%clk 0:02:21.5]} 13... Qd8 {[%clk 0:02:07.4]}
14. g5 {[%clk 0:02:19.4]} 14... Ng8 {[%clk 0:01:55.4]} 15. Nd5 {[%clk
0:02:05.8]} 15... Kf8 {[%clk 0:01:54.8]} 16. h4 {[%clk 0:01:51.2]} 16... b5
{[%clk 0:01:47.3]} 17. Rc3 {[%clk 0:01:51]} 17... b4 {[%clk 0:01:43.5]} 18. Bb6
{[%clk 0:01:40]} 18... Qb8 {[%clk 0:01:03.4]} 19. Rf3 {[%clk 0:01:05.8]} 19...
Be6 {[%clk 0:00:59.9]} 20. Nxe7 {[%clk 0:00:39.2]} 20... Bxb3 {[%clk 0:00:53.1]}
21. Nxg8 {[%clk 0:00:25.5]} 21... Bxa2 {[%clk 0:00:30.2]} 22. b3 {[%clk
0:00:20.1]} 22... Qxb6 {[%clk 0:00:27.5]} 23. Qc4 {[%clk 0:00:20.1]} 23... Qb7
{[%clk 0:00:20.1]} 24. Nf6 {[%clk 0:00:17.7]} 24... gxf6 {[%clk 0:00:19.8]} 25.
Rxf6 {[%clk 0:00:18.1]} 25... a5 {[%clk 0:00:17.6]} 26. Rd1 {[%clk 0:00:16.7]}
26... a4 {[%clk 0:00:16.9]} 27. Rdxd6 {[%clk 0:00:14.8]} 27... axb3 {[%clk
0:00:17]} 28. Rxf7+ {[%clk 0:00:13]} 28... Qxf7 {[%clk 0:00:15.6]} 29. Rf6
{[%clk 0:00:13.6]} 29... b2+ {[%clk 0:00:14.7]} 30. Kxb2 {[%clk 0:00:11.7]}
30... Bxc4 {[%clk 0:00:15.6]} 0-1

[Event "*** Titled Tuesday Blitz"]
[Site "Chess.com"]
[Date "2021.04.06"]
[Round "6"]
[White "1SpongeBob"]
[Black "Larciano"]
[Result "1-0"]
[WhiteElo "2186"]
[BlackElo "1942"]
[TimeControl "180+1"]
[EndTime "11:07:53 PDT"]
[Termination "1SpongeBob won on time"]

1. Nf3 {[%clk 0:03:00.5]} 1... Nf6 {[%clk 0:02:53.6]} 2. d4 {[%clk 0:02:57.3]}
2... d5 {[%clk 0:02:49.8]} 3. c4 {[%clk 0:02:57.2]} 3... Nc6 {[%clk 0:02:50]} 4.
Nc3 {[%clk 0:02:56.6]} 4... dxc4 {[%clk 0:02:40.1]} 5. e3 {[%clk 0:02:55.6]}
5... Bg4 {[%clk 0:02:38.9]} 6. Bxc4 {[%clk 0:02:54.8]} 6... e6 {[%clk
0:02:23.7]} 7. O-O {[%clk 0:02:53.2]} 7... Bd6 {[%clk 0:02:23]} 8. h3 {[%clk
0:02:52.5]} 8... Bh5 {[%clk 0:02:22.4]} 9. Bb5 {[%clk 0:02:44.1]} 9... O-O
{[%clk 0:02:22.2]} 10. Bxc6 {[%clk 0:02:42.1]} 10... bxc6 {[%clk 0:02:22]} 11.
e4 {[%clk 0:02:43]} 11... Bxf3 {[%clk 0:02:05.6]} 12. Qxf3 {[%clk 0:02:40.8]}
12... e5 {[%clk 0:02:06]} 13. Be3 {[%clk 0:02:39.6]} 13... Rb8 {[%clk
0:02:04.3]} 14. Rfd1 {[%clk 0:02:33.7]} 14... Qe7 {[%clk 0:02:03]} 15. b3 {[%clk
0:02:22.4]} 15... h6 {[%clk 0:02:03]} 16. d5 {[%clk 0:02:16.9]} 16... cxd5
{[%clk 0:01:51.1]} 17. Nxd5 {[%clk 0:02:17.8]} 17... Nxd5 {[%clk 0:01:50.2]} 18.
Rxd5 {[%clk 0:02:18.7]} 18... Ra8 {[%clk 0:01:45.1]} 19. Rad1 {[%clk 0:02:16.9]}
19... a5 {[%clk 0:01:43.5]} 20. Qg4 {[%clk 0:02:06.2]} 20... Kh8 {[%clk
0:01:42.6]} 21. R1d3 {[%clk 0:01:51.5]} 21... a4 {[%clk 0:01:42.5]} 22. g3
{[%clk 0:01:44]} 22... axb3 {[%clk 0:01:42.1]} 23. axb3 {[%clk 0:01:42.7]} 23...
Ra3 {[%clk 0:01:30.7]} 24. Kg2 {[%clk 0:01:36.3]} 24... Rb8 {[%clk 0:01:30.2]}
25. Qd1 {[%clk 0:01:36.5]} 25... Qe8 {[%clk 0:01:25.3]} 26. Bc5 {[%clk 0:01:31]}
26... Bxc5 {[%clk 0:01:23.1]} 27. Rxc5 {[%clk 0:01:31.9]} 27... Qe7 {[%clk
0:01:14]} 28. Rc4 {[%clk 0:01:20.1]} 28... f6 {[%clk 0:01:10.4]} 29. Rd7 {[%clk
0:01:17]} 29... Qe6 {[%clk 0:00:58.2]} 30. Rcxc7 {[%clk 0:00:45.2]} 30... Rg8
{[%clk 0:00:53.4]} 31. b4 {[%clk 0:00:44.1]} 31... Ra2 {[%clk 0:00:51.6]} 32.
Rd2 {[%clk 0:00:41.9]} 32... Rga8 {[%clk 0:00:47]} 33. b5 {[%clk 0:00:40]} 33...
Qb6 {[%clk 0:00:44]} 34. Rd8+ {[%clk 0:00:37.3]} 34... Rxd8 {[%clk 0:00:43.3]}
35. Qxd8+ {[%clk 0:00:38.2]} 35... Kh7 {[%clk 0:00:43.6]} 36. Rxg7+ {[%clk
0:00:38.8]} 36... Kxg7 {[%clk 0:00:41.5]} 37. Qxb6 {[%clk 0:00:39.7]} 1-0

[Event "*** Titled Tuesday Blitz"]
[Site "Chess.com"]
[Date "2021.04.06"]
[Round "6"]
[White "Eloist"]
[Black "juancruzarias"]
[Result "0-1"]
[WhiteElo "2351"]
[BlackElo "2560"]
[TimeControl "180+1"]
[EndTime "11:07:58 PDT"]
[Termination "juancruzarias won on time"]

1. e4 {[%clk 0:03:00.9]} 1... e6 {[%clk 0:02:58.7]} 2. d4 {[%clk 0:03:00.4]}
2... d5 {[%clk 0:02:58.3]} 3. Nd2 {[%clk 0:03:00.5]} 3... Nf6 {[%clk 0:02:53.9]}
4. e5 {[%clk 0:03:00.2]} 4... Nfd7 {[%clk 0:02:52.6]} 5. c3 {[%clk 0:03:00.5]}
5... c5 {[%clk 0:02:52.6]} 6. f4 {[%clk 0:02:56.1]} 6... Nc6 {[%clk 0:02:50.4]}
7. Ngf3 {[%clk 0:02:56.1]} 7... f5 {[%clk 0:02:33.9]} 8. Nb3 {[%clk 0:02:47]}
8... Be7 {[%clk 0:02:31.6]} 9. Be2 {[%clk 0:02:45.7]} 9... O-O {[%clk
0:02:29.8]} 10. Be3 {[%clk 0:02:45.6]} 10... c4 {[%clk 0:02:29.5]} 11. Nbd2
{[%clk 0:02:45.4]} 11... b5 {[%clk 0:02:29.7]} 12. b3 {[%clk 0:02:40.8]} 12...
Rb8 {[%clk 0:02:27.1]} 13. O-O {[%clk 0:02:38.1]} 13... Nb6 {[%clk 0:02:25.3]}
14. a4 {[%clk 0:02:26.5]} 14... b4 {[%clk 0:02:09.2]} 15. a5 {[%clk 0:02:05.6]}
15... bxc3 {[%clk 0:02:07.3]} 16. Nb1 {[%clk 0:01:50.6]} 16... cxb3 {[%clk
0:02:05.8]} 17. Nxc3 {[%clk 0:01:20.5]} 17... Nc4 {[%clk 0:01:56.8]} 18. Bxc4
{[%clk 0:01:16.7]} 18... dxc4 {[%clk 0:01:54]} 19. d5 {[%clk 0:01:12.2]} 19...
exd5 {[%clk 0:01:53.2]} 20. Qxd5+ {[%clk 0:00:59.2]} 20... Qxd5 {[%clk
0:01:49.1]} 21. Nxd5 {[%clk 0:01:00.1]} 21... Bd8 {[%clk 0:01:35.9]} 22. Bc5
{[%clk 0:00:34.2]} 22... Re8 {[%clk 0:01:32.2]} 23. Bd6 {[%clk 0:00:33.7]} 23...
Rb5 {[%clk 0:01:24.4]} 24. Nc3 {[%clk 0:00:23.2]} 24... Rxa5 {[%clk 0:01:21.5]}
25. Rad1 {[%clk 0:00:22.3]} 25... Be6 {[%clk 0:01:20.6]} 26. Kh1 {[%clk
0:00:13.7]} 26... Bb6 {[%clk 0:01:14.8]} 27. Ng5 {[%clk 0:00:13.3]} 27... Nd4
{[%clk 0:01:08.6]} 28. Nxe6 {[%clk 0:00:11.8]} 28... Nxe6 {[%clk 0:01:08.7]} 29.
g4 {[%clk 0:00:10]} 29... g6 {[%clk 0:01:02]} 30. gxf5 {[%clk 0:00:09.6]} 30...
gxf5 {[%clk 0:01:02.9]} 31. Nd5 {[%clk 0:00:08.6]} 31... Rxd5 {[%clk 0:01:00.7]}
32. Rxd5 {[%clk 0:00:07.7]} 32... c3 {[%clk 0:01:00.9]} 33. Rb5 {[%clk
0:00:05.9]} 33... Nd4 {[%clk 0:00:59.2]} 34. Rb4 {[%clk 0:00:05]} 34... b2
{[%clk 0:00:54.6]} 35. Rg1+ {[%clk 0:00:03.9]} 35... Kf7 {[%clk 0:00:53.8]} 36.
Bc7 {[%clk 0:00:02.4]} 36... Bxc7 {[%clk 0:00:46.6]} 37. Rxd4 {[%clk 0:00:01.9]}
37... c2 {[%clk 0:00:46.1]} 0-1

[Event "*** Titled Tuesday Blitz"]
[Site "Chess.com"]
[Date "2021.04.06"]
[Round "6"]
[White "J36225"]
[Black "kai_nov"]
[Result "1-0"]
[WhiteElo "2441"]
[BlackElo "2270"]
[TimeControl "180+1"]
[EndTime "11:07:58 PDT"]
[Termination "J36225 won on time"]

1. e4 {[%clk 0:03:00.9]} 1... c5 {[%clk 0:02:59.6]} 2. Nf3 {[%clk 0:03:00.7]}
2... Nc6 {[%clk 0:02:59.1]} 3. Bb5 {[%clk 0:03:00.3]} 3... g6 {[%clk 0:02:57.7]}
4. Bxc6 {[%clk 0:02:59.3]} 4... dxc6 {[%clk 0:02:56.2]} 5. d3 {[%clk 0:03:00.2]}
5... Bg7 {[%clk 0:02:55.8]} 6. h3 {[%clk 0:02:58.6]} 6... Nf6 {[%clk 0:02:42.1]}
7. Nc3 {[%clk 0:02:57.7]} 7... O-O {[%clk 0:02:38.3]} 8. O-O {[%clk 0:02:56.9]}
8... Nd7 {[%clk 0:02:36.1]} 9. Be3 {[%clk 0:02:55.6]} 9... Re8 {[%clk 0:02:30]}
10. Qd2 {[%clk 0:02:49.9]} 10... b6 {[%clk 0:02:26.6]} 11. a3 {[%clk 0:02:43.6]}
11... Ne5 {[%clk 0:02:22.2]} 12. Nxe5 {[%clk 0:02:42.9]} 12... Bxe5 {[%clk
0:02:21.2]} 13. f4 {[%clk 0:02:42.8]} 13... Bd4 {[%clk 0:02:11.3]} 14. Rae1
{[%clk 0:02:38.5]} 14... f5 {[%clk 0:02:00.6]} 15. exf5 {[%clk 0:02:28.5]} 15...
Bxf5 {[%clk 0:01:59.6]} 16. Bxd4 {[%clk 0:02:28.1]} 16... Qxd4+ {[%clk 0:01:56]}
17. Qe3 {[%clk 0:02:27.9]} 17... Rad8 {[%clk 0:01:42.6]} 18. Qxd4 {[%clk
0:02:27.4]} 18... cxd4 {[%clk 0:01:40.6]} 19. Ne4 {[%clk 0:02:27.1]} 19... h6
{[%clk 0:01:31.1]} 20. Ng3 {[%clk 0:02:23.7]} 20... Rd5 {[%clk 0:01:13.8]} 21.
Re2 {[%clk 0:02:10.5]} 21... Kf7 {[%clk 0:01:12.7]} 22. Rfe1 {[%clk 0:02:09.4]}
22... e6 {[%clk 0:00:51.8]} 23. Nh1 {[%clk 0:01:56.8]} 23... h5 {[%clk
0:00:50.9]} 24. Nf2 {[%clk 0:01:52.3]} 24... h4 {[%clk 0:00:49.4]} 25. Ne4
{[%clk 0:01:52.3]} 25... Bxe4 {[%clk 0:00:46.6]} 26. Rxe4 {[%clk 0:01:53.2]}
26... Kf6 {[%clk 0:00:31.6]} 27. Kf2 {[%clk 0:01:47.2]} 27... a5 {[%clk
0:00:24.9]} 28. Kf3 {[%clk 0:01:41.2]} 28... a4 {[%clk 0:00:23.9]} 29. Re5
{[%clk 0:01:34.1]} 29... Rxe5 {[%clk 0:00:19.4]} 30. Rxe5 {[%clk 0:01:33.2]}
30... c5 {[%clk 0:00:12.2]} 31. Kg4 {[%clk 0:01:32.5]} 31... Rc8 {[%clk
0:00:12.3]} 32. Kxh4 {[%clk 0:01:16.7]} 32... c4 {[%clk 0:00:12.5]} 33. Rb5
{[%clk 0:01:16.6]} 33... cxd3 {[%clk 0:00:11.3]} 34. cxd3 {[%clk 0:01:16.6]}
34... Rc2 {[%clk 0:00:11.4]} 35. g4 {[%clk 0:01:11.4]} 35... Rd2 {[%clk
0:00:08.9]} 36. Rxb6 {[%clk 0:01:11.6]} 36... Rxd3 {[%clk 0:00:08.4]} 37. Rb4
{[%clk 0:01:12]} 37... Rd2 {[%clk 0:00:06.8]} 38. Rxa4 {[%clk 0:01:11.5]} 38...
d3 {[%clk 0:00:06.2]} 39. Rd4 {[%clk 0:01:11.5]} 39... Rxb2 {[%clk 0:00:04]} 40.
Rxd3 {[%clk 0:01:11.6]} 40... Rg2 {[%clk 0:00:03.1]} 41. a4 {[%clk 0:01:07]}
41... Ra2 {[%clk 0:00:02.5]} 42. Rd4 {[%clk 0:01:07.1]} 42... Ra3 {[%clk
0:00:02.9]} 43. Rb4 {[%clk 0:00:59.5]} 43... Rc3 {[%clk 0:00:02.8]} 44. a5
{[%clk 0:00:58.7]} 44... Ra3 {[%clk 0:00:02.9]} 45. Rb5 {[%clk 0:00:58.7]} 1-0